Cogmind - Beta 13 @@@ ROGUE MODE // 2024.08.03 @ 19:50:32 Player: N.W.L Result: Destroyed by as-92223 with Assembled Rifle Performance ------------- Evolutions (0) 0 Regions Visited (2) 400 Robots Destroyed (39) 195 Value Destroyed (492) 492 Prototype IDs (3) 60 Alien Tech Used (0) 0 Bonus (2) 2 TOTAL SCORE: 1149 Bonus ------- High Alert Combat Kills 2 Cogmind --------- Core Integrity 0/250 Matter 10/300 Energy 100/100 System Corruption 7% Temperature Cool (0) Movement Core (1400) Ox27 Location -10/Mines Parts ------- > --- POWER (1) -------- (None) > --- PROPULSION (2) --- (None) > --- UTILITY (2) ------ Huge Storage Unit > --- WEAPON (2) ------- Hammer > --- INVENTORY (25) --- Ion Engine Ion Engine Ion Engine Light Treads Small Storage Unit Huge Storage Unit High-capacity Matter Pod (0) Seismic Detector Light Armor Plating Light Armor Plating Assault Rifle Light Assault Rifle Light Assault Rifle Light Assault Rifle Grenade Launcher Hammer Hammer Hammer Peak State ------------ > --- POWER ------------ Ion Engine > --- PROPULSION ------- Light Treads Light Treads > --- UTILITY ---------- Small Storage Unit Seismic Detector > --- WEAPON ----------- Assault Rifle Assault Rifle > --- INVENTORY -------- Ion Engine Light Ion Engine Aluminum Leg Improved Terrain Scanner Weapon Shielding Medium Laser Grenade Launcher Mining Laser [Rating: 8] Favorites ----------- Power Ion Engine Engine Ion Engine Propulsion Light Treads Treads Light Treads Utility Small Storage Unit Device Seismic Detector Storage Small Storage Unit Protection Light Armor Plating Weapon Assault Rifle Energy Gun Medium Laser Ballistic Gun Assault Rifle Launcher Grenade Launcher Special Weapon Mining Laser Impact Weapon Hammer Build | -11 -10 -10 ------- Run | Yrd Mat Min Slots Evolved . | . . . Power . | . . . Propulsion . | . . . Utility . | . . . Weapon . | . . . Parts Attached 26 | 6 15 5 Power 2 | 1 1 . Engine 2 | 1 1 . Core . | . . . Reactor . | . . . Propulsion 4 | 2 2 . Treads 4 | 2 2 . Leg . | . . . Wheel . | . . . Hover . | . . . Flight . | . . . Utility 5 | 1 3 1 Device 1 | . 1 . Storage 2 | 1 1 . Processor . | . . . Hackware . | . . . Protection 2 | . 1 1 Artifact . | . . . Weapon 15 | 2 9 4 Energy Gun 1 | 1 . . Energy Cannon . | . . . Ballistic Gun 8 | 1 5 2 Ballistic Cannon . | . . . Launcher 4 | . 3 1 Special Weapon 1 | . 1 . Impact Weapon 1 | . . 1 Slashing Weapon . | . . . Piercing Weapon . | . . . Special Melee Weapon . | . . . Unidentified Prototypes . | . . . Parts Lost 5 | . . 5 Power 1 | . . 1 Propulsion 2 | . . 2 Utility 1 | . . 1 Weapon 1 | . . 1 Highest Loss Streak 2 | . . 2 To Critical Strikes . | . . . Average Slot Usage (%) 93 | . 99 65 Engine 12 | . 14 4 Treads 26 | . 28 17 Device 6 | . 8 . Storage 14 | . 14 14 Protection 4 | . 5 2 Ballistic Gun 24 | . 26 16 Impact Weapon 1 | . . 6 Naked Turns . | . . . Heaviest Build 93 | 14 92 93 Greatest Support 40 | 40 40 40 Greatest Overweight (x) 27 | . 2 27 Average Overweight (x) . | . . 3 Largest Inventory Capacity 25 | 8 25 25 Average Capacity 14 | 7 12 25 Most Carried 19 | 8 18 19 Average Carried 10 | 4 9 18 Final Capacity 25 | 8 25 25 Final Carried 18 | 8 18 18 Class Distribution -------------------- 100% | Mutant Dominant Class ---------------- Mutant | -10/Materials Mutant | -10/Mines Resources | -11 -10 -10 ----------- Run | Yrd Mat Min Matter Collected 814 | 299 491 24 Remotely . | . . . Salvage Created 791 | 149 609 33 Parts 76 | 15 56 5 Haulers Intercepted 2 | . 2 . Recyclers Shooed 4 | 1 3 . Parts Field Recycled . | . . . Retrieved Matter . | . . . Parts Self-Destructed . | . . . Prevented . | . . . Kills | -11 -10 -10 ------- Run | Yrd Mat Min Combat Hostiles Destroyed 29 | . 16 13 Guns 7 | . 7 . AOE 22 | . 9 13 Classes Destroyed 10 | 3 6 1 Worker 4 | 1 3 . Builder 4 | . 4 . Tunneler 6 | 4 2 . Hauler 2 | . 2 . Recycler 1 | 1 . . Operator 1 | . 1 . Watcher 2 | . 2 . Swarmer 12 | . 9 3 Grunt 7 | . 7 . Assembled 10 | . . 10 Best Kill Streak 10 | 3 5 10 Combat Bots Only 10 | . 4 10 Max Kills in Single Turn 3 | 1 3 3 Gunslinging . | . . . Exploded 3 | . 3 3 Melee . | . . . Uniques/NPCs Destroyed . | . . . Combat | -11 -10 -10 -------- Run | Yrd Mat Min Hostile Shots Fired 103 | . 55 48 Missed 30 | . 15 15 Damage Taken 1029 | . 440 589 Core 263 | . 99 164 Absorbed by Shields . | . . . Core Remaining (%) 100 | 100 . . Volleys Fired 112 | 13 84 15 Largest 2 | 2 2 2 Hottest 100 | 70 100 50 Shots Fired 208 | 26 160 22 Gun 192 | 26 153 13 Cannon . | . . . Launcher 15 | . 6 9 Special 1 | . 1 . Kinetic 170 | 13 144 13 Thermal 23 | 13 10 . Explosive 15 | . 6 9 Electromagnetic . | . . . Robot Hit Streak 8 | 4 8 4 Robot Miss Streak 5 | 2 5 4 Penetration Max . | . . . Secondary Targets 1 | . 1 . Max Gunslinging Chain 1 | . 1 . Shots Hit Robots 94 | 12 74 8 Core Hits 76 | 7 46 23 Critical Kills 1 | . 1 . Critical Parts Destroyed . | . . . Critical Strikes 1 | . 1 . Destroy 1 | . 1 . Melee Attacks 10 | . . 10 Impact 10 | . . 10 Slashing . | . . . Piercing . | . . . Sneak Attacks . | . . . Combat Hostiles . | . . . Follow-up Attacks . | . . . Damage Inflicted 2353 | 162 1528 663 Guns 1170 | 162 949 59 Cannons . | . . . Explosions 1183 | . 579 604 Melee . | . . . Ramming . | . . . Kinetic 1035 | 63 913 59 Thermal 135 | 99 36 . Explosive 1183 | . 579 604 Electromagnetic . | . . . Impact . | . . . Slashing . | . . . Piercing . | . . . Highest Corruption 7 | . 2 7 Average Corruption 2 | . 1 5 Corruption Purged . | . . . Corruption Blocked . | . . . Effects 17 | . 5 12 Message Errors 4 | . 2 2 Matter Fused 3 | . . 3 Heat Flow Errors 2 | . . 2 Energy Discharges 1 | . 1 . Parts Rejected 3 | . . 3 Data Loss (minor) 2 | . 1 1 Misfires 1 | . . 1 Alerts 1 | . 1 . Overload Shots . | . . . Overflow Damage 8 | . . 8 Projectiles . | . . . Explosions 8 | . . 8 Melee . | . . . Knockbacks . | . . . Impact . | . . . Kinetic . | . . . Secondary . | . . . Self-Inflicted Damage 153 | . 58 95 Shots 8 | . 3 5 Rammed . | . . . Targets Rammed . | . . . Kicked . | . . . Crushed . | . . . Highest Temperature 266 | 45 20 266 Average Temperature 45 | 16 8 118 Received Heat Transfer 146 | . 126 20 Siege Activations . | . . . Robots Corrupted . | . . . Combat Hostiles . | . . . Parts Fried . | . . . Impact Corruptions . | . . . Robots Melted . | . . . Combat Hostiles . | . . . Parts Melted 1 | 1 . . Heat Transferred 407 | 296 111 . Parts Sabotaged . | . . . Parts Stolen . | . . . Parts Stripped . | . . . Power Chain Reactions . | . . . Alert | -11 -10 -10 ------- Run | Yrd Mat Min Peak Influence 430 | 30 430 178 Initial 36 | . 19 36 Average 147 | 13 168 113 Maximum Alert Level 2 | . 2 . Low Security (%) 72 | 100 63 100 Level 1 25 | . 34 . Level 2 1 | . 2 . Level 3 . | . . . Level 4 . | . . . Level 5 . | . . . High Security . | . . . Max Security . | . . . Squads Dispatched 6 | . 6 . Investigation 4 | . 4 . Extermination . | . . . Reinforcement 2 | . 2 . Assault . | . . . Garrison . | . . . Intercept . | . . . Searches Triggered . | . . . Construction Impeded . | . . . Haulers Reinforced . | . . . Active Scanning Responses . | . . . Cargo Convoy Interrupts . | . . . Stealth | -11 -10 -10 --------- Run | Yrd Mat Min Distress Signals 3 | . 2 1 Communications Jammed . | . . . Distress Signals . | . . . Times Spotted 52 | . 32 20 Peak Tracking Total 8 | . 4 8 Tactical Retreats 10 | . 3 7 Traps | -11 -10 -10 ------- Run | Yrd Mat Min Traps Triggered 3 | . 3 . Indirectly . | . . . Trap Hack Attempts . | . . . Triggered . | . . . Disarmed . | . . . Reprogrammed . | . . . Reused . | . . . Traps Extracted . | . . . Installed . | . . . Triggered . | . . . Machines | -11 -10 -10 ---------- Run | Yrd Mat Min Machines Disabled 1 | . 1 . Max in Single Turn 1 | . 1 . Machines Repaired . | . . . Machines Dismantled . | . . . Machines Sabotaged . | . . . Overloaded Fab Kills . | . . . Hacking | -11 -10 -10 --------- Run | Yrd Mat Min Machines Accessed 9 | . 9 . Terminals 7 | . 7 . Fabricators . | . . . Repair Stations 1 | . 1 . Recycling Units 1 | . 1 . Scanalyzers . | . . . Garrison Access . | . . . Total Hacks 26 | . 26 . Successful 10 | . 10 . Failed 16 | . 16 . Catastrophic 4 | . 4 . Database Lockouts . | . . . Manual 18 | . 18 . Terminals 19 | . 19 . Fabricators . | . . . Repair Stations 4 | . 4 . Recycling Units 3 | . 3 . Scanalyzers . | . . . Garrison Access . | . . . Terminal Hacks 5 | . 5 . Part Schematic 1 | . 1 . Robot Analysis 2 | . 2 . Prototype ID Bank 1 | . 1 . Alert Level 1 | . 1 . Fabricator Hacks . | . . . Repair Station Hacks 2 | . 2 . Scan Component 2 | . 2 . Recycling Unit Hacks 1 | . 1 . Retrieve Components 1 | . 1 . Scanalyzer . | . . . Garrison Access Hacks . | . . . Unauthorized Hacks 2 | . 2 . Terminals 1 | . 1 . Botnet 1 | . 1 . Fabricators . | . . . Repair Stations . | . . . Recycling Units 1 | . 1 . Tunnel 1 | . 1 . Scanalyzers . | . . . Garrison Access . | . . . Data Cores Recovered . | . . . Used . | . . . Hacking Detections 8 | . 8 . Full Trace Events 3 | . 3 . Feedback Events 1 | . 1 . Corruption 1 | . 1 . Feedback Blocked . | . . . Robot Schematics Acquired . | . . . Robots Built . | . . . Authchips . | . . . Time . | . . . Total Robot Build Rating . | . . . Part Schematics Acquired 1 | . 1 . Parts Built . | . . . Authchips . | . . . Time . | . . . Total Part Build Rating . | . . . Parts Repaired . | . . . Time . | . . . Parts Recycled . | . . . Recycled Matter . | . . . Retrieved Matter . | . . . Retrieved Components 1 | . 1 . Parts Scanalyzed . | . . . Part Schematics Acquired . | . . . Parts Damaged . | . . . Bothacking | -11 -10 -10 ------------ Run | Yrd Mat Min Used RIF Installer . | . . . Robots Hacked . | . . . Non-combat . | . . . Combat . | . . . Robot Hacks Applied . | . . . Relay Couplers Released . | . . . Fabnet Peak Effective % . | . . . Robots Rewired . | . . . Allies Hacked . | . . . Hacks Repelled . | . . . Allies | -11 -10 -10 -------- Run | Yrd Mat Min Total Allies . | . . . Largest Group . | . . . Highest-Rated Group . | . . . Highest-Rated Ally . | . . . Total Orders . | . . . Ally Attacks . | . . . Total Damage . | . . . Kills . | . . . Allies Corrupted . | . . . Allies Melted . | . . . Intel | -11 -10 -10 ------- Run | Yrd Mat Min Robot Analysis Total 2 | . 2 . Derelict Logs Recovered . | . . . Drone Launches . | . . . Drone Recoveries . | . . . Exploration | -11 -10 -10 ------------- Run | Yrd Mat Min Turns Passed 3021 | 218 2271 532 Spaces Moved 993 | 106 803 84 Core 7 | 6 . 1 Treads 986 | 100 803 83 Legs . | . . . Wheels . | . . . Hover . | . . . Flight . | . . . Fastest Speed 50 | 50 160 320 Average Speed 208 | 153 193 420 Slowest Speed 1400 | 160 320 1400 Overloaded Moves . | . . . Propulsion Burnouts . | . . . Robots Hopped . | . . . Cave-ins Triggered . | . . . Exploration Rate (%) 35 | 6 90 11 Regions Visited 2 Branch Regions 1 Pre-discovered Areas 1 | . 1 . Known Exits Taken . | . . . Unknown Exits Taken 2 | 1 1 . Scrap Searched . | . . . Spaces Dug 53 | . 12 41 Terrain Destroyed 93 | . 31 62 Melee 7 | . . 7 Projectile . | . . . AOE 86 | . 31 55 Terrain Rammed . | . . . Walls Destroyed . | . . . Machines Disabled . | . . . Actions | -11 -10 -10 --------- Run | Yrd Mat Min Total 1717 | 132 1363 222 Wait 538 | . 431 107 Move 991 | 105 802 84 Hop . | . . . Pick Up 29 | 8 20 1 Fast Attach 8 | 6 . 2 Attach 2 | . 1 1 Detach . | . . . Swap 16 | . 14 2 Drop 11 | . 11 . Fire 112 | 13 84 15 Melee 10 | . . 10 Ram . | . . . Kick . | . . . Crush . | . . . Escape Stasis . | . . . Rewire . | . . . Trap . | . . . Miscellaneous . | . . . Route ------- -11/Scrapyard -10/Materials (discovered 4 exits: [*Mat x2] / [*Min] / [*Sub]) -10/Mines History --------- Turn | Location | Event 9 | -11/Scrapyard | Discovered new exit (range 14) 219 | -11/Scrapyard | Entered Materials 302 | -10/Materials | Build established: Mutant 505 | -10/Materials | Discovered new exit (range 16) 600 | -10/Materials | Discovered new exit (range 16) 947 | -10/Materials | Discovered new exit (range 5) 1708 | -10/Materials | Discovered new exit (range 14) 2490 | -10/Materials | Entered Mines 2491 | -10/Mines | Assembled infested the area 2496 | -10/Mines | Assisted by a Guerilla fighting off Assembled 2533 | -10/Mines | Core integrity fell below 50% 2560 | -10/Mines | Destroyed 10 combat bots 2679 | -10/Mines | Core integrity fell below 20% 3022 | -10/Mines | Destroyed by as-92223 with Assembled Rifle Last Messages --------------- 02667_ The unstable cave ceiling collapses. 02670_ Acquired Assault Rifle. 02673_ The unstable cave ceiling collapses. 02682_ System corrupted: Matter fused (-2). 02696_ The unstable cave ceiling collapses. 02702_ System corrupted: Assault Rifle rejected. 02702_ The unstable cave ceiling collapses. 02702_ Acquired Assault Rifle. 02743_ System corrupted: Heat flow error (+271). 02767_ System corrupted: Heat flow error (+291). 02775_ Acquired 15 matter. 02812_ System corrupted: FCS attempts to trigger Assault Rifle. 02812_ System corrupted: Assault Rifle misfires. 02829_ HEW&SZF1NE#,HHRJ=AA%FYZA2RWSGGMTD/ 5HQ 02850_ System corrupted: Matter fused (-2). 02891_ System corrupted: Component data lost. 02907_ 8MLSD= Z4PA/8TG:,Z6EF3 02909_ The unstable cave ceiling collapses. 03004_ Assault Rifle destroyed. 03007_ Lgt. Treads destroyed. Map ----- +----------------------------------------------------+ | ??????????????????????????????????????????? | | ??????????????????????????????????????????? | | ??????????????????????????????????????????? | | ??????????????????????????????????????????? | | ??????????????????????????????????????????? | | ??????????????????????????????????????????? | | ??????????????????????????????????????????? | | ??????????????????????????????????????????? | | ??????????????????????????????????????????? | | ??????????????????????????????????????????? | | ??????????????????????????????????????????? | | ??????????????????????????????????????????? | | ??????????????????????????????????????????? | | ??????????????????????????????????????????? | | ??????????????????????????????????????????? | | ??????????????????????????????????????????? | | ????????????????????????????????#?????????? | | ??????????????????????????????? #?????????? | | ??????????????????????????????! ####??????? | | ?????????????????????????????%= ???????? | | ????????????????????????????!! #????????? | | ??????????????????????###### $ ??????????? | | ??????????????????????# ????????????? | | ??????????????????????? a ??????????????? | | ????????????????????????# #???????????????? | | ????????????????????????#@#???????????????? | | ????????????????????????# ##??????????????? | | ????????????????????????# ;##?????????????? | | ????????????????????????# # #?????????????? | | ???????????????????????##a###?????????????? | | ??????????????????????## #"##????????????? | | ??????????????????????# ##???????????? | | ??????????????????????# ##??????????? | | ??????????????????????# #??????????? | | ??????????????????????# ###????????? | | ??????????????????????## ##???????? | | ???????????????????????# # ##??????? | | ???????????????????????# ## # # ##?????? | | ???????????????????????# ## ########????? | | ???????????????????????## # ## ## ##???? | | ????????????????????? # #???? | | ????????????????????#### ### ## ##??? | | ???????????????????????# # # ##?? | | ???????????????????????# ## # # #?? | | ???????????????????????# * [ = #?? | | ???????????????????? = [ #?? | | ???????????????????? % # # ##?? | | ????????????????????############# ##??? | | ????????????????????????????????#######???? | | ??????????????????????????????????????????? | +----------------------------------------------------+ Best States ------------- Heat Dissipation 25 Energy Generation 10 Energy Capacity 250 Matter Stores 300 Matter Capacity 300 Sight Range 16 Terrain Scan Density 10 Armor Coverage 150 Evasion (%) 40 Recoil Reduction 2 Item Schematics ----------------- Cargo Storage Unit | -10/Materials | Hacked Robot Schematics ------------------ None Fabricated ------------ Nothing Alien Tech Used ----------------- None Achievements -------------- None Challenges ------------ None Game ------ Seed HellfireSpikedWings Manual? 0 Play Time 00:15:08 Cumulative 229.6 hours Start 2024.08.03 @ 18:47:24 End 2024.08.03 @ 19:50:32 Sessions 3 Manual Loads 0 Difficulty Rogue Special Mode None Game No. 110 Rogue 110 Adventurer 0 Explorer 0 Win Type - Total 8 Types 4/1/3/0/0/0/0/0/0 Lore% 80 Gallery% 87 Achievement% 68 Wizard Run 0 Options --------- Layout 0 ASCII 0 Keyboard 0 Movement Mouse Keybinds 0 Fullscreen 2 Font 18/SmallcapsGlow Map View 76x50 Zoom Use 0% Tactical HUD 1 Map Filters NONE Filters NONE Steam 1 RUN: 63b60137-9eb9-4958-af38-0ecb3c978ffc